{"text_format":"1","workbook":"xlsx","n_sheets":2,"sheets":["Pasiūlymas","Subtiekėjai ir priedai"],"not_rendered":{"charts":0,"images":0,"macros":1,"external_links":0,"defined_names":0,"comments":0,"pivot_tables":0},"unopened":[],"bounds":{"document_bytes":16777216,"sheet_cells":100000,"rows_first":2000,"rows_last":500,"rows_between":2000,"halvings":0,"cell_chars":16384,"cell_head_chars":4096},"cells_cut":0,"cells_raw":0,"read":"whole","date_system":"1900"}

{"sheet":"Pasiūlymas","index":0,"n_rows":187,"n_cols":7,"rows_kept":187,"cut":false,"hidden":false,"merged":[[27,0,27,5],[28,0,28,5],[24,0,24,5],[25,0,25,5],[26,0,26,5],[18,0,18,1],[18,2,18,5],[23,0,23,5],[19,0,19,1],[20,0,20,1],[19,2,19,5],[20,2,20,5],[22,0,22,5],[29,0,29,2],[29,3,29,5],[11,0,11,1],[11,2,11,5],[12,0,12,1],[12,2,12,5],[13,0,13,1],[13,2,13,5],[14,0,14,1],[14,2,14,5],[15,0,15,1],[15,2,15,5],[16,0,16,1],[16,2,16,5],[17,0,17,1],[17,2,17,5]]}
[]
["PIKIMO SĄLYGŲ PRIEDAS \"PASIŪLYMO FORMA\""]
[]
["VIRTUVĖS ĮRANGA"]
[]
["Kam:","LSMU Kauno ligoninė"]
[]
["Data:","2021 m. gruodžio 15 d."]
["Nr.:","OF-A11278"]
["Vieta:","Kaunas"]
[]
["Tiekėjo pavadinimas / Ūkio subjektų grupės nariai:",null,"UAB \"Sentios\""]
["Tiekėjo kodas (-ai):",null,302597426]
["Tiekėjo adresas (-ai):",null,"A.Juozapavičiaus pr. 104B, LT-45108 Kaunas"]
["Tiekėjo PVM mokėtojo kodas(-ai):",null,"LT100006425312"]
["Tiekėjo / Ūkio subjektų grupės atsakingo partnerio sąskaitos numeris, banko pavadinimas ir banko kodas (-ai):",null,"LT657044060007689476\nAB SEB bankas, b.k. 70440"]
["Asmens atsakingo už pasiūlymą vardas, pavardė:",null,"Administratorė Deimilė Katkauskienė"]
["Asmens atsakingo už pasiūlymą telefono numeris, el. pašto adresas:",null,"8 670 91072, info@sentios.lt "]
["Tiekėjo / Ūkio subjektų grupės, laimėjimo atveju, pasirašančio sutartį asmens vardas, pavardė, pareigos:",null,"Direktorius Gytis Janulevičius"]
["Tiekėjo / Ūkio subjektų grupės, laimėjimo atveju, už sutarties vykdymą atsakingo asmens vardas, pavardė, telefono numeris, elektroninio pašto adresas:",null,"Nurodoma sutarties pasirašymo metu"]
["(1) Tiekėjo / Ūkio subjektų grupės narių, (2) ūkio subjektų, kurių pajėgumais remiamasi, ir (3) jei pašalinimo pagrindai taikomi visiems subtiekėjams - subtiekėjų, kolegialaus priežiūros organo (Stebėtojų tarybos) ir (ar) kolegialaus valdymo organo (Valdybos) narių sąrašas (jei sudaryta) ir (ar) asmuo, kuriam suteikti VPĮ 46 str. 2 d. 2 p. numatyti įgaliojimai",null,null,null,null,null,{"$f":"IF((SUMPRODUCT(--(C21=\"\"))>0), \"Privaloma užpildyti, kai taikomi pašalinimo pagrindai\", \"\")","v":"Privaloma užpildyti, kai taikomi pašalinimo pagrindai"}]
[]
["Tiekėjo patvirtinimai:"]
["1. Šiuo pasiūlymu pažymime, kad sutinkame su visomi pirkimo sąlygomis, nustatytomis:"]
["1.1. viešojo pirkimo dokumentuose"]
["1.2. kituose pirkimo dokumentuose (jų paaiškinimuose, papildymuose)."]
["2. Patvirtiname, kad informacija ir duomenys, pateikti pasiūlyme, yra teisingi ir apima viską, ko reikia tinkamam sutarties įvykdymui"]
["3. Patvirtiname, kad jei pasiūlyme nenurodyti kolegialaus priežiūros/valdymo organų nariai, šie organai juridiniuose asmenyse nėra sudaryti (taikoma, kai pirkimo dokumentuose nustatyti pašalinimo pagrindai)."]
["4. Pasiūlymas galioja iki termino, nustatyto pirkimo dokumentuose."]
["5. Tais atvejais, kai pagal galiojančius teisės aktus tiekėjui nereikia mokėti PVM, jis nurodo priežastis, dėl kurių PVM nemoka:"]
["6. Tiekėjas kainas pateikia, nurodydamas ne daugiau skaičių po kablelio, nei leidžiama pirkimo dokumentuose."]
["1. DALIS","ELEKTRINĖ VIRYKLĖ"]
[]
["Tiekėjo pasiūlymas:"]
["Nr.","Pavadinimas","Kiekis","Mato vienetas","Kaina be PVM, Eur","Suma be PVM, Eur"]
["1.","Elektrinė viryklė"]
["1.1.","Elektrinė viryklė",2,"vnt.",1162.2,{"$f":"IF(ISBLANK(E37),\"\", PRODUCT(C37,E37))","v":2324.4}]
["1.1.1.","Ne mažiau 6 špižinių (arba lygiavertės medžiagos) kaitviečių"]
["1.1.2.","su stovu"]
["1.1.3.","nerūdijančio plieno (arba lygiavertės medžiagos) korpusas"]
["1.1.4.","kaitvieičų matmenys 30 cm x 40 cm (+/- 2 cm)"]
["1.1.5.","mechaninis valdymas"]
["1.1.6.","ištraukiama talpa susikaupusiems nešvarumams, riebalams"]
["1.1.7.","kaitvietės sudaro lygų paviršių"]
["1.1.8.","aukštį reguliuojančios kojelės"]
["1.1.9.","Pakuotė turi atitikti Lietuvos Respublikos pakuočių ir pakuočių atliekų tvarkymo įstatymo įsakymo ir Lietuvos Respublikos aplinkos ministro 2002 m. birželio 27 d. įsakymu Nr.348 Dėl pakuočių ir pakuočių atliekų tvarkymo taisyklių reikalavimo."]
[null,null,null,null,"Suma be PVM",{"$f":"IF((COUNT(C37:C46)<>COUNT(F37:F46)),\"\", SUM(F37:F46))","v":2324.4},{"$f":"IF((COUNT(C37:C46)<>COUNT(F37:F46)),\"Neužpildytos visų objektų kainos\", \"\")","v":""}]
[null,null,null,null,"PVM suma",{"$f":"+F49-F47","v":488.11999999999989}]
[null,null,null,null,"Suma su PVM",{"$f":"+ROUND(F47*1.21,2)","v":2812.52},"Dalies biudžetas su PVM: 3630 Eur"]
[]
[]
[]
["2. DALIS","MĖSMALĖ"]
[]
["Tiekėjo pasiūlymas:"]
["Nr.","Pavadinimas","Kiekis","Mato vienetas","Kaina be PVM, Eur","Suma be PVM, Eur"]
["2.","Mėsmalė"]
["2.1.","Mėsmalė",1,"vnt.",null,{"$f":"IF(ISBLANK(E58),\"\", PRODUCT(C58,E58))","v":""}]
["2.1.1.","nerūdijančio plieno korpusas arba lygiavertės medžiagos"]
["2.1.2.","oru aušinamas trifazis variklis"]
["2.1.3.","greitis 150-185 aps./min"]
["2.1.4.","galingumas ne mažiau 1,5kw/400V"]
["2.1.5.","komplekte grūdinto plieno priešpeilis, ne mažiau kaip 2 peiliukai ir 2 sietukai"]
["2.1.6.","Pakuotė turi atitikti Lietuvos Respublikos pakuočių ir pakuočių atliekų tvarkymo įstatymo įsakymo ir Lietuvos Respublikos aplinkos ministro 2002 m. birželio 27 d. įsakymu Nr.348 Dėl pakuočių ir pakuočių atliekų tvarkymo taisyklių reikalavimo."]
[null,null,null,null,"Suma be PVM",{"$f":"IF((COUNT(C58:C64)<>COUNT(F58:F64)),\"\", SUM(F58:F64))","v":""},{"$f":"IF((COUNT(C58:C64)<>COUNT(F58:F64)),\"Neužpildytos visų objektų kainos\", \"\")","v":"Neužpildytos visų objektų kainos"}]
[null,null,null,null,"PVM suma"]
[null,null,null,null,"Suma su PVM",{"$f":"IF(ISBLANK(F66), \"\", SUM(F65:F66))","v":""},"Dalies biudžetas su PVM: 605 Eur"]
[]
[]
[]
["3. DALIS","PLANETARINIS MIKSERIS"]
[]
["Tiekėjo pasiūlymas:"]
["Nr.","Pavadinimas","Kiekis","Mato vienetas","Kaina be PVM, Eur","Suma be PVM, Eur"]
["3.","Planetarinis mikseris"]
["3.1.","Planetarinis mikseris",1,"vnt.",null,{"$f":"IF(ISBLANK(E76),\"\", PRODUCT(C76,E76))","v":""}]
["3.1.1.","talpa ne mažiau 50 l talpa "]
["3.1.2.","nerūdijančio plieno korpusas arba lygiavertės medžiagos"]
["3.1.3.","nuimama talpa pagaminta iš nerūdijančio plieno, su rankenomis arba lygiavertės medžiagos"]
["3.1.4.","komplekte ne mažiau 3 antgaliai: tešlos maišymo kablys, maišymo mentelė, šluotelė"]
["3.1.5.","galingumas ne mažiau 2,5 kW/380V"]
["3.1.6.","Pakuotė turi atitikti Lietuvos Respublikos pakuočių ir pakuočių atliekų tvarkymo įstatymo įsakymo ir Lietuvos Respublikos aplinkos ministro 2002 m. birželio 27 d. įsakymu Nr.348 Dėl pakuočių ir pakuočių atliekų tvarkymo taisyklių reikalavimo."]
[null,null,null,null,"Suma be PVM",{"$f":"IF((COUNT(C76:C82)<>COUNT(F76:F82)),\"\", SUM(F76:F82))","v":""},{"$f":"IF((COUNT(C76:C82)<>COUNT(F76:F82)),\"Neužpildytos visų objektų kainos\", \"\")","v":"Neužpildytos visų objektų kainos"}]
[null,null,null,null,"PVM suma"]
[null,null,null,null,"Suma su PVM",{"$f":"IF(ISBLANK(F84), \"\", SUM(F83:F84))","v":""},"Dalies biudžetas su PVM: 2420 Eur"]
[]
[]
[]
["4. DALIS","KONVEKCINĖ KROSNIS"]
[]
["Tiekėjo pasiūlymas:"]
["Nr.","Pavadinimas","Kiekis","Mato vienetas","Kaina be PVM, Eur","Suma be PVM, Eur"]
["4.","Konvekcinė krosnis"]
["4.1.","Konvekcinė krosnis",2,"vnt.",null,{"$f":"IF(ISBLANK(E94),\"\", PRODUCT(C94,E94))","v":""}]
["4.1.1.","matmenys 90x70x110 cm +/- 5 mm."]
["4.1.2.","galia 13,0/400 V+/- 5 %"]
["4.1.3.","talpa: ne mažiau 10 skardų"]
["4.1.4.","temperatūra 0-270 oC +/- 5 oC"]
["4.1.5.","mechaninis valdymas"]
["4.1.6.","signalizacija baigus programą"]
["4.1.7.","laiko nustatymo funkcija"]
["4.1.8.","nerūdijančio plieno ar lygiavertės medžiagos kepimo kamera su užapvalintais kampais"]
["4.1.9.","vidaus apšvietimas"]
["4.1.10.","kepimo spintos durys atsidaro 150 laipsnių ar didesniu kampu"]
["4.1.11.","automatinė kameros atvėsinimo sistema"]
["4.1.12.","galimos funkcijos (ne mažiau): sausas kepimas, garai + sausas kepimas, garai"]
["4.1.13.","automatinis garo reguliavimas, papildomas drėkinimas"]
["4.1.14.","į komplektą turi būti įskaičiuota ir kartu su įranga pateikta ne mažiau  10 skardų ir ne mažiau 1 stovas"]
["4.1.15.","Pakuotė turi atitikti Lietuvos Respublikos pakuočių ir pakuočių atliekų tvarkymo įstatymo įsakymo ir Lietuvos Respublikos aplinkos ministro 2002 m. birželio 27 d. įsakymu Nr.348 Dėl pakuočių ir pakuočių atliekų tvarkymo taisyklių reikalavimo."]
[null,null,null,null,"Suma be PVM",{"$f":"IF((COUNT(C94:C109)<>COUNT(F94:F109)),\"\", SUM(F94:F109))","v":""},{"$f":"IF((COUNT(C94:C109)<>COUNT(F94:F109)),\"Neužpildytos visų objektų kainos\", \"\")","v":"Neužpildytos visų objektų kainos"}]
[null,null,null,null,"PVM suma"]
[null,null,null,null,"Suma su PVM",{"$f":"IF(ISBLANK(F111), \"\", SUM(F110:F111))","v":""},"Dalies biudžetas su PVM: 8591 Eur"]
[]
[]
[]
["5. DALIS","EL. KEPIMO PLOKŠTUMA"]
[]
["Tiekėjo pasiūlymas:"]
["Nr.","Pavadinimas","Kiekis","Mato vienetas","Kaina be PVM, Eur","Suma be PVM, Eur"]
["5.","el. kepimo plokštuma"]
["5.1.","el. kepimo plokštuma",2,"vnt.",null,{"$f":"IF(ISBLANK(E121),\"\", PRODUCT(C121,E121))","v":""}]
["5.1.1.","galingumas  9,6 kW/400V +/- 5 %"]
["5.1.2.","matmenys 800x714x900  mm  +/- 5 mm"]
["5.1.3.","temperatūros reguliavimas 50...270 oC"]
["5.1.4.","nerūdijančio plieno korpusas"]
["5.1.5.","reguliuojamo aukščio kojelės"]
["5.1.6.","temperatūros reguliavimas termostato pagalba"]
["5.1.7.","Pakuotė turi atitikti Lietuvos Respublikos pakuočių ir pakuočių atliekų tvarkymo įstatymo įsakymo ir Lietuvos Respublikos aplinkos ministro 2002 m. birželio 27 d.  įsakymu Nr.348 Dėl pakuočių ir pakuočių atliekų tvarkymo taisyklių reikalavimo."]
[null,null,null,null,"Suma be PVM",{"$f":"IF((COUNT(C121:C128)<>COUNT(F121:F128)),\"\", SUM(F121:F128))","v":""},{"$f":"IF((COUNT(C121:C128)<>COUNT(F121:F128)),\"Neužpildytos visų objektų kainos\", \"\")","v":"Neužpildytos visų objektų kainos"}]
[null,null,null,null,"PVM suma"]
[null,null,null,null,"Suma su PVM",{"$f":"IF(ISBLANK(F130), \"\", SUM(F129:F130))","v":""},"Dalies biudžetas su PVM: 4235 Eur"]
[]
[]
[]
["6. DALIS","ELEKTRINIS VIRIMO KATILAS NETIESIOGINIO KAITINIMO"]
[]
["Tiekėjo pasiūlymas:"]
["Nr.","Pavadinimas","Kiekis","Mato vienetas","Kaina be PVM, Eur","Suma be PVM, Eur"]
["6.","Elektrinis virimo katilas netiesioginio kaitinimo"]
["6.1.","Elektrinis virimo katilas netiesioginio kaitinimo",2,"vnt.",null,{"$f":"IF(ISBLANK(E140),\"\", PRODUCT(C140,E140))","v":""}]
["6.1.1.","50-70  l talpos"]
["6.1.2.","puodo diametras 40- 60 cm"]
["6.1.3.","galia 15 kW/380 V +/- 5%"]
["6.1.4.","Pakuotė turi atitikti Lietuvos Respublikos pakuočių ir pakuočių atliekų tvarkymo įstatymo įsakymo ir Lietuvos Respublikos aplinkos ministro 2002 m. birželio 27 d. įsakymu Nr.348 Dėl pakuočių ir pakuočių atliekų tvarkymo taisyklių reikalavimo."]
["6.1.5.","du veikimo rėžimai virimo ir temperatūros palaikymo, pakeliamas dangtis su fiksacija su apsaugos mechanizmu nuo perkaitinimo"]
["6.1.6.","manometras,išleidimo kranas iš chromuoto žalvario (ar lygiavertės medž.) su aterminiu vožtuvu."]
[null,null,null,null,"Suma be PVM",{"$f":"IF((COUNT(C140:C146)<>COUNT(F140:F146)),\"\", SUM(F140:F146))","v":""},{"$f":"IF((COUNT(C140:C146)<>COUNT(F140:F146)),\"Neužpildytos visų objektų kainos\", \"\")","v":"Neužpildytos visų objektų kainos"}]
[null,null,null,null,"PVM suma"]
[null,null,null,null,"Suma su PVM",{"$f":"IF(ISBLANK(F148), \"\", SUM(F147:F148))","v":""},"Dalies biudžetas su PVM: 7260 Eur"]
[]
[]
[]
["7. DALIS","RANKINIS MAIŠYTUVAS"]
[]
["Tiekėjo pasiūlymas:"]
["Nr.","Pavadinimas","Kiekis","Mato vienetas","Kaina be PVM, Eur","Suma be PVM, Eur"]
["7.","Rankinis maišytuvas"]
["7.1.","Rankinis maišytuvas",8,"vnt.",206.55,{"$f":"IF(ISBLANK(E158),\"\", PRODUCT(C158,E158))","v":1652.4}]
["7.1.1.","reguliuojamas variklio greitis"]
["7.1.2.","aušinamas variklis"]
["7.1.3.","korpusas su ergonomiška rankena"]
["7.1.4.","greitis 4000-16000 aps./min +/- 5%"]
["7.1.5.","bendras svoris ne daugiau kaip 5 kg"]
["7.1.6.","galia 500 W-230V +/- 5%"]
["7.1.7.","strypas ir ašmenys pagaminti iš nerūdijančio plieno"]
["7.1.8.","antgalio ilgis 450-550 mm"]
["7.1.9.","Pakuotė turi atitikti Lietuvos Respublikos pakuočių ir pakuočių atliekų tvarkymo įstatymo įsakymo ir Lietuvos Respublikos aplinkos ministro 2002 m. birželio 27 d. įsakymu Nr.348 Dėl pakuočių ir pakuočių atliekų tvarkymo taisyklių reikalavimo."]
[null,null,null,null,"Suma be PVM",{"$f":"IF((COUNT(C158:C167)<>COUNT(F158:F167)),\"\", SUM(F158:F167))","v":1652.4},{"$f":"IF((COUNT(C158:C167)<>COUNT(F158:F167)),\"Neužpildytos visų objektų kainos\", \"\")","v":""}]
[null,null,null,null,"PVM suma",{"$f":"+F170-F168","v":347}]
[null,null,null,null,"Suma su PVM",{"$f":"+ROUND(F168*1.21,2)","v":1999.4},"Dalies biudžetas su PVM: 2057 Eur"]
[]
[]
[]
["8. DALIS","BULVIŲ TARKAVIMO MAŠINA"]
[]
["Tiekėjo pasiūlymas:"]
["Nr.","Pavadinimas","Kiekis","Mato vienetas","Kaina be PVM, Eur","Suma be PVM, Eur"]
["8.","Bulvių tarkavimo mašina"]
["8.1.","Bulvių tarkavimo mašina",1,"vnt.",null,{"$f":"IF(ISBLANK(E179),\"\", PRODUCT(C179,E179))","v":""}]
["8.1.1.","korpusas iš nerūdijančio plieno ir aliuminio arba lygiavertės medžiagos"]
["8.1.2.","matmenys: ne mažiau - ilgis 880 mm, plotis 870 mm, aukštis 935 mm "]
["8.1.3.","profesionali"]
["8.1.4.","galia 0,55 kW/230V +/- 5%"]
["8.1.5.","Pakuotė turi atitikti Lietuvos Respublikos pakuočių ir pakuočių atliekų tvarkymo įstatymo įsakymo ir Lietuvos Respublikos aplinkos ministro 2002 m. birželio 27 d. įsakymu Nr.348 Dėl pakuočių ir pakuočių atliekų tvarkymo taisyklių reikalavimo."]
[null,null,null,null,"Suma be PVM",{"$f":"IF((COUNT(C179:C184)<>COUNT(F179:F184)),\"\", SUM(F179:F184))","v":""},{"$f":"IF((COUNT(C179:C184)<>COUNT(F179:F184)),\"Neužpildytos visų objektų kainos\", \"\")","v":"Neužpildytos visų objektų kainos"}]
[null,null,null,null,"PVM suma"]
[null,null,null,null,"Suma su PVM",{"$f":"IF(ISBLANK(F186), \"\", SUM(F185:F186))","v":""},"Dalies biudžetas su PVM: 726 Eur"]

{"sheet":"Subtiekėjai ir priedai","index":1,"n_rows":100,"n_cols":11,"rows_kept":100,"cut":false,"hidden":false,"merged":[[23,0,23,1],[22,0,22,1],[21,0,21,1],[20,0,20,1],[19,0,19,1],[28,0,28,1],[27,0,27,1],[26,0,26,1],[25,0,25,1],[24,0,24,1],[23,2,23,4],[22,2,22,4],[21,2,21,4],[20,2,20,4],[19,2,19,4],[28,2,28,4],[27,2,27,4],[26,2,26,4],[25,2,25,4],[24,2,24,4],[23,5,23,7],[22,5,22,7],[21,5,21,7],[20,5,20,7],[19,5,19,7],[28,5,28,7],[27,5,27,7],[26,5,26,7],[25,5,25,7],[24,5,24,7],[23,8,23,9],[22,8,22,9],[21,8,21,9],[20,8,20,9],[19,8,19,9],[28,8,28,9],[27,8,27,9],[26,8,26,9],[25,8,25,9],[24,8,24,9],[16,0,16,10],[18,8,18,9],[18,5,18,7],[18,2,18,4],[18,0,18,1],[13,0,13,1],[12,0,12,1],[11,0,11,1],[10,0,10,1],[13,8,13,9],[12,8,12,9],[11,8,11,9],[10,8,10,9],[4,0,4,1],[5,5,5,7],[5,0,5,1],[9,0,9,1],[13,2,13,4],[12,2,12,4],[11,2,11,4],[10,2,10,4],[9,2,9,4],[13,5,13,7],[12,5,12,7],[11,5,11,7],[10,5,10,7],[9,5,9,7],[1,0,2,10],[30,0,30,9],[14,5,14,7],[8,5,8,7],[7,5,7,7],[6,5,6,7],[14,8,14,9],[8,8,8,9],[7,8,7,9],[6,8,6,9],[14,0,14,1],[8,0,8,1],[7,0,7,1],[6,0,6,1],[14,2,14,4],[8,2,8,4],[7,2,7,4],[9,8,9,9],[6,2,6,4],[5,2,5,4],[5,8,5,9],[4,8,4,9],[4,5,4,7],[4,2,4,4],[32,0,32,9],[34,7,34,9],[34,1,34,6],[45,7,45,9],[42,7,42,9],[37,7,37,9],[36,7,36,9],[35,7,35,9],[44,7,44,9],[43,7,43,9],[41,7,41,9],[40,7,40,9],[39,7,39,9],[38,7,38,9],[45,1,45,6],[44,1,44,6],[47,0,47,9],[52,4,52,9],[50,4,50,9],[52,0,52,3],[50,0,50,3],[38,1,38,6],[37,1,37,6],[36,1,36,6],[35,1,35,6],[43,1,43,6],[42,1,42,6],[41,1,41,6],[40,1,40,6],[39,1,39,6]]}
[]
["Ūkio subjektai (įskaitant kvazisubtiekėjus - fiziniai asmenys, kuriuos ketinama įdarbinti pirkimo laimėjimo atveju), kurių pajėgumais tiekėjas remiasi, kad atitiktų keliamus kvalifikacijos reikalavimus:"]
[]
[]
["Pavadinimas*",null,"Kodas, adresas",null,null,"Perduodami įsipareigojimai",null,null,"Perduodamų įsipareigojimų dalis nuo visos pirkimo sutarties (Eur arba %)",null,"Kval. Reikalavimo Nr."]
[]
[]
[]
[]
[]
[]
[]
[]
[]
[]
[]
["Subtiekėjams / subteikėjams / subrangovams numatomos perduoti veiklos (privaloma nurodyti) ir šių ūkio subjektų pavadinimai (jei žinomi):"]
[]
["Pavadinimas",null,"Kodas, adresas",null,null,"Perduodama veikla*",null,null,"Perduodamos veiklos dalis nuo visos pirkimo sutarties (Eur arba %)"]
[]
[]
[]
[]
[]
[]
[]
[]
[]
[]
[]
[]
[]
["Kartu su pasiūlymu pateikiami šie dokumentai:"]
[]
["Nr.","Dokumento  pavadinimas",null,null,null,null,null,"Dokumentas yra konfidencialus? Taip/Ne"]
["1","Jungtinės veiklos kopija (jei taikoma)"]
["2","Europos bendrasis viešųjų pirkimų dokumentas",null,null,null,null,null,"Ne"]
["3","Subtiekimo sutartis, ketinimų protokolas, preliminarios sutartys ar kiti dokumentai, patvirtinantys, kad laimėjus pirkimą tiekėjui bus prieinami kitų ūkio subjektų ištekliai (jei pasitelkiami kvalifikacijos atitikimui)"]
["4","Pasiūlymo atitikimą pirkimo sąlygų techninei specifikacijai pagrindžiantys dokumentai",null,null,null,null,null,"Ne"]
[5,"Įgaliojimas",null,null,null,null,null,"Taip"]
[]
[]
[]
[]
[]
[]
[]
["Pasiūlyme nurodyta Prekės kaina, išskyrus jos sudedamąsias dalis, subtiekėjai, taip pat kita informacija, kuri teisės aktų nustatyta tvarka turi būti skelbiama arba kitokiu būdu viešai prieinama visuomenei, nėra laikoma konfidencialia informacija. Konfidencialią informaciją sudaro, visų pirma, komercinė (gamybinė) paslaptis ir konfidencialieji pasiūlymų aspektai. Informacija, kurią viešai skelbti įpareigoja Lietuvos Respublikos įstatymai, negali būti tiekėjo nurodoma kaip konfidenciali, todėl, tiekėjui nurodžius tokią informaciją kaip konfidencialią, perkančioji organizacija turi teisę ją skelbti. Jei tiekėjas nenurodo konfidencialios informacijos, laikoma, kad konfidencialios informacijos tiekėjo pasiūlyme nėra. Vadovaujantis Informacijos viešinimo Centrinėje viešųjų pirkimų informacinėje sistemoje tvarkos aprašu, patvirtintu Viešųjų pirkimų tarnybos direktoriaus 2017 m. birželio 19 d. įsakymu Nr. 1S-91 „Dėl Informacijos viešinimo Centrinėje viešųjų pirkimų informacinėje sistemoje tvarkos aprašo patvirtinimo“, perkančioji organizacija laimėjusio dalyvio pasiūlymą, išskyrus informaciją, kurią tiekėjas nurodė kaip konfidencialią, paskelbs CVP IS."]
[]
[]
["Tiekėjo arba jo įgalioto asmens pareigų pavadinimas:",null,null,null,"Administratorė"]
[]
["Pasirašančio asmens vardas ir pavardė:",null,null,null,"Deimilė Katkauskienė"]
[]
[]
[]
[]
[]
[]
[]
[]
[]
[]
[]
[]
[]
[]
[]
[]
[]
[]
[]
[]
[]
[]
[]
[]
[]
[]
[]
[]
[]
[]
[]
[]
[]
[]
[]
[]
[]
[]
[]
[]
[]
[]
[]
[]
[]
[]
["5229 2021-12-01 12:34:51"]